fUSD/lending_fUSD_20240426
["ID","MTS","AMOUNT","RATE_DAILY","PERIOD"]
[323693776,1714165907091,-1596.74,0.0001589,2]
[323693777,1714165907100,-2414.19,0.0001589,2]
[323693778,1714165907110,-234.0653167,0.0001589,2]
[323693779,1714165907119,-2546.68,0.0001589,2]
[323693780,1714165907129,-11893.77,0.0001589,2]
[323693781,1714165907138,-500.0,0.0001589,2]
[323693782,1714165907147,-1472.99,0.0001589,2]
[323693783,1714165907157,-1714.54,0.0001589,2]
[323693784,1714165907167,-500.0,0.0001589,2]
[323693785,1714165907177,-3379.18,0.0001589,2]
[323693786,1714165907186,-500.0,0.0001589,2]
[323693787,1714165907195,-746.33,0.0001589,2]
[323693788,1714165907205,-1131.17,0.0001589,2]
[323693789,1714165907214,-635.79,0.0001589,2]
[323693790,1714165907224,-1362.32,0.0001589,2]
[323693791,1714165907233,-1226.03,0.0001589,2]
[323693792,1714165907243,-1261.3,0.0001589,2]
[323693793,1714165907253,-2565.0,0.0001589,2]
[323693794,1714165907262,-6474.87,0.0001589,2]
[323693795,1714165907271,-626.49,0.0001589,2]
[323693796,1714165907281,-5265.92,0.0001589,2]
[323693797,1714165907292,-7575.76,0.0001589,2]
[323693798,1714165907302,-959.47,0.0001589,2]
[323693799,1714165907311,-500.0,0.0001589,2]
[323693800,1714165907320,-894.84,0.0001589,2]
[323693801,1714165907331,-1029.44,0.0001589,2]
[323693802,1714165907340,-1594.94,0.0001589,2]
[323693803,1714165907349,-1585.92,0.0001589,2]
[323693804,1714165907358,-927.21,0.0001589,2]
[323693805,1714165907367,-29278.54,0.0001589,2]
[323693806,1714165907376,-598.42,0.0001589,2]
[323693807,1714165907386,-2169.32,0.0001589,2]
[323693808,1714165907396,-1031.64,0.0001589,2]
[323693809,1714165907406,-500.0,0.0001589,2]
[323693810,1714165907416,-3003.77,0.0001589,2]
[323693811,1714165907426,-500.0,0.0001589,2]
[323693812,1714165907435,-885.97,0.0001589,2]
[323693813,1714165907444,-1452.7,0.0001589,2]
[323693814,1714165907454,-964.95,0.0001589,2]
[323693815,1714165907464,-1299.05,0.0001589,2]
[323693816,1714165907473,-6953.47,0.0001589,2]
[323693817,1714165907483,-598.29,0.0001589,2]
[323693818,1714165907492,-2182.8,0.0001589,2]
[323693819,1714165907502,-2149.24,0.0001589,2]
[323693820,1714165907511,-1173.04,0.0001589,2]
[323693821,1714165907521,-831.79,0.0001589,2]
[323693822,1714165907530,-2022.3,0.0001589,2]
[323693823,1714165907540,-4234.92,0.0001589,2]
[323693824,1714165907549,-2096.72,0.0001589,2]
[323693825,1714165907559,-1713.59,0.0001589,2]
[323693826,1714165907569,-625.39,0.0001589,2]
[323693827,1714165907580,-3159.71,0.0001589,2]
[323693828,1714165907590,-1338.07,0.0001589,2]
[323693829,1714165907599,-629.77,0.0001589,2]
[323693830,1714165907610,-15953.33,0.0001589,2]
[323693831,1714165907619,-500.0,0.0001589,2]
[323693832,1714165907630,-8716.91,0.0001589,2]
[323693833,1714165907639,-2333.3,0.0001589,2]
[323693834,1714165907649,-2250.5,0.0001589,2]
[323693835,1714165907658,-4686.34,0.0001589,2]
[323693836,1714165907667,-2136.27,0.0001589,2]
[323693837,1714165907676,-1193.75,0.0001589,2]
[323693838,1714165907685,-1350.24,0.0001589,2]
[323693839,1714165907695,-1860.65,0.0001589,2]
[323693840,1714165907704,-1152.1,0.0001589,2]
[323693841,1714165907714,-3493.58,0.0001589,2]
[323693842,1714165907723,-720.21,0.0001589,2]
[323693843,1714165907733,-1609.49,0.0001589,2]
[323693844,1714165907742,-743.96,0.0001589,2]
[323693845,1714165907752,-4354.83,0.0001589,2]
[323693846,1714165907761,-902.48,0.0001589,2]
[323693847,1714165907770,-771.76,0.0001589,2]
[323693848,1714165907780,-937.47,0.0001589,2]
[323693849,1714165907789,-563.05,0.0001589,2]
[323693850,1714165907800,-1806.19,0.0001589,2]
[323693851,1714165907809,-1571.07,0.0001589,2]
[323693852,1714165907819,-2572.91,0.0001589,2]
[323693853,1714165907829,-1736.03,0.0001589,2]
[323693854,1714165907839,-4550.03,0.0001589,2]
[323693855,1714165907849,-702.48,0.0001589,2]
[323693856,1714165907858,-2483.94,0.0001589,2]
[323693857,1714165907867,-683.53,0.0001589,2]
[323693858,1714165907877,-2118.68,0.0001589,2]
[323693859,1714165907886,-2305.98,0.0001589,2]
[323693860,1714165907896,-2824.94,0.0001589,2]
[323693861,1714165907905,-1519.98,0.0001589,2]
[323693862,1714165907914,-1443.87,0.0001589,2]
[323693863,1714165907924,-1079.67,0.0001589,2]
[323693864,1714165908004,-500.0,0.0001589,2]
[323693865,1714165908015,-5799.26,0.0001589,2]
[323693866,1714165908024,-2700.57,0.0001589,2]
[323693867,1714165908033,-1958.57,0.0001589,2]
[323693868,1714165908043,-1238.29,0.0001589,2]
[323693869,1714165908052,-2076.33,0.0001589,2]
[323693870,1714165908062,-726.92,0.0001589,2]
[323693871,1714165908074,-3054.76,0.0001589,2]
[323693872,1714165908083,-978.83,0.0001589,2]
[323693873,1714165908093,-2476.96,0.0001589,2]
[323693874,1714165908102,-897.14,0.0001589,2]
[323693875,1714165908112,-1563.14,0.0001589,2]
[323693876,1714165908121,-1893.28,0.0001589,2]
[323693877,1714165908130,-1013.72,0.0001589,2]
[323693878,1714165908140,-900.63,0.0001589,2]
[323693879,1714165908150,-718.21,0.0001589,2]
[323693880,1714165908159,-555.79,0.0001589,2]
[323693881,1714165908169,-6088.6,0.0001589,2]
[323693882,1714165908179,-1066.3,0.0001589,2]
[323693883,1714165908188,-500.0,0.0001589,2]
[323693884,1714165908198,-505.04,0.0001589,2]
[323693885,1714165908207,-2410.31,0.0001589,2]
[323693886,1714165908217,-820.43,0.0001589,2]
[323693887,1714165908226,-523.49,0.0001589,2]
[323693888,1714165908236,-908.81,0.0001589,2]
[323693889,1714165908245,-500.0,0.0001589,2]
[323693890,1714165908254,-1371.32,0.0001589,2]
[323693891,1714165908263,-2025.12,0.0001589,2]
[323693892,1714165908273,-560.23,0.0001589,2]
[323693893,1714165908282,-3137.06,0.0001589,2]
[323693894,1714165908295,-578.95,0.0001589,2]
[323693895,1714165908305,-995.94,0.0001589,2]
[323693896,1714165908314,-2682.02,0.0001589,2]
[323693897,1714165908325,-500.0,0.0001589,2]
[323693898,1714165908334,-500.0,0.0001589,2]
[323693899,1714165908345,-995.98,0.0001598,2]
[323693900,1714165908353,-1000.0,0.00016,3]
[323693901,1714165908363,-842.0,0.00016,3]
[323693902,1714165908372,-150.0,0.00016,2]
[323693903,1714165908383,-150.0,0.00016,2]
[323693904,1714165908392,-557.71554175,0.00016023,2]
[323693905,1714165908402,-1407.43167261,0.00016048,2]
[323693906,1714165908411,-181.18381325,0.00016056,2]
[323693907,1714165908421,-673.80146933,0.00016096,2]
[323693908,1714165908431,-267.32903863,0.00016102,2]
[323693909,1714165908441,-323.60026895,0.0001612,2]
[323693910,1714165908450,-166.66666667,0.00016136,2]
[323693911,1714165908460,-498.67,0.00016164,2]
[323693912,1714165908469,-615.87,0.00016164,2]
[323693913,1714165908478,-500.0,0.00016164,2]
[323693914,1714165908487,-609.49,0.00016164,2]
[323693915,1714165908496,-654.47,0.00016164,2]
[323693916,1714165908505,-678.23,0.00016164,2]
[323693917,1714165908514,-613.12,0.00016164,2]
[323693918,1714165908524,-646.77,0.00016164,2]
[323693919,1714165908533,-530.65,0.00016164,2]
[323693920,1714165908542,-880.46,0.00016164,2]
[323693921,1714165908551,-1006.3,0.00016164,2]
[323693922,1714165908562,-500.0,0.00016164,2]
[323693923,1714165908570,-1261.56,0.00016164,2]
[323693924,1714165908582,-504.93,0.00016164,2]
[323693925,1714165908591,-1360.51,0.00016164,2]
[323693926,1714165908601,-1108.07,0.00016164,2]
[323693927,1714165908610,-822.7,0.00016164,2]
[323693928,1714165908619,-543.02,0.00016164,2]
[323693929,1714165908629,-500.0,0.00016164,2]
[323693930,1714165908638,-1146.38,0.00016164,2]
[323693931,1714165908647,-1304.31,0.00016164,2]
[323693932,1714165908656,-560.91,0.00016164,2]
[323693933,1714165908666,-500.0,0.00016164,2]
[323693934,1714165908675,-921.09,0.00016164,2]
[323693935,1714165908684,-500.0,0.00016164,2]
[323693936,1714165908693,-700.07,0.00016164,2]
[323693937,1714165908702,-1367.84,0.00016164,2]
[323693938,1714165908711,-760.98,0.00016164,2]
[323693939,1714165908721,-748.97,0.00016164,2]
[323693940,1714165908730,-726.54,0.00016164,2]
[323693941,1714165908740,-550.92,0.00016164,2]
[323693942,1714165908749,-1430.99,0.00016164,2]
[323693943,1714165908758,-570.48,0.00016164,2]
[323693944,1714165908767,-676.01,0.00016164,2]
[323693945,1714165908776,-1217.26,0.00016164,2]
[323693946,1714165908786,-792.02,0.00016164,2]
[323693947,1714165908795,-500.0,0.00016164,2]
[323693948,1714165908804,-725.24,0.00016164,2]
[323693949,1714165908813,-872.88,0.00016164,2]
[323693950,1714165908822,-940.41,0.00016164,2]
[323693951,1714165908832,-509.95,0.00016164,2]
[323693952,1714165908841,-803.02,0.00016164,2]
[323693953,1714165908851,-363.21,0.00016164,2]
[323693954,1714165908861,-749.95,0.00016164,2]
[323693955,1714165908871,-527.35,0.00016164,2]
[323693956,1714165908881,-565.11,0.00016164,2]
[323693957,1714165908891,-656.68,0.00016164,2]
[323693958,1714165908901,-626.53,0.00016164,2]
[323693959,1714165908910,-1008.89,0.00016164,2]
[323693960,1714165908920,-837.59,0.00016164,2]
[323693961,1714165908929,-525.53,0.00016164,2]
[323693962,1714165908938,-565.57,0.00016164,2]
[323693963,1714165908947,-1849.17,0.00016164,2]
[323693964,1714165908956,-367.29065921,0.00016164,2]
[323693965,1714165908966,-1095.79,0.00016164,2]
[323693966,1714165908975,-500.0,0.00016164,2]
[323693967,1714165908984,-1100.72,0.00016164,2]
[323693968,1714165908994,-609.39,0.00016164,2]
[323693969,1714165909003,-1415.44,0.00016164,2]
[323693970,1714165909012,-721.08,0.00016164,2]
[323693971,1714165909022,-521.34,0.00016164,2]
[323693972,1714165909031,-5617.73,0.00016164,2]
[323693973,1714165909040,-8630.93,0.00016164,2]
[323693974,1714165909050,-1052.38,0.00016164,2]
[323693975,1714165909059,-412.21274573,0.00016164,2]
[323693976,1714165909068,-1229.82,0.00016164,2]
[323693977,1714165909078,-6867.51,0.00016164,2]
[323693978,1714165909087,-600.27,0.00016164,2]
[323693979,1714165909096,-1794.51,0.00016164,2]
[323693980,1714165909105,-7720.32,0.00016164,2]
[323693981,1714165909114,-1596.74,0.00016164,2]
[323693982,1714165909125,-2414.19,0.00016164,2]
[323693983,1714165909134,-2546.68,0.00016164,2]
[323693984,1714165909143,-11893.77,0.00016164,2]
[323693985,1714165909153,-648.36095957,0.00016164,2]
[323693986,1714165909163,-1472.99,0.00016164,2]
[323693987,1714165909173,-1714.54,0.00016164,2]
[323693988,1714165909182,-169.96,0.00016164,2]
[323693989,1714165909191,-3379.18,0.00016164,2]
[323693990,1714165909201,-500.0,0.00016164,2]
[323693991,1714165909210,-746.33,0.00016164,2]
[323693992,1714165909219,-1131.17,0.00016164,2]
[323693993,1714165909228,-635.79,0.00016164,2]
[323693994,1714165909237,-1362.32,0.00016164,2]
[323693995,1714165909246,-1226.03,0.00016164,2]
[323693996,1714165909256,-1261.3,0.00016164,2]
[323693997,1714165909265,-2565.0,0.00016164,2]
[323693998,1714165909274,-6474.87,0.00016164,2]
[323693999,1714165909283,-626.49,0.00016164,2]
[323694000,1714165909295,-5265.92,0.00016164,2]
[323694001,1714165909305,-7575.76,0.00016164,2]
[323694002,1714165909315,-959.47,0.00016164,2]
[323694003,1714165909324,-894.84,0.00016164,2]
[323694004,1714165909335,-500.0,0.00016164,2]
[323694005,1714165909346,-1029.44,0.00016164,2]
[323694006,1714165909355,-1594.94,0.00016164,2]
[323694007,1714165909364,-1585.92,0.00016164,2]
[323694008,1714165909375,-927.21,0.00016164,2]
[323694009,1714165909384,-29278.54,0.00016164,2]
[323694010,1714165909395,-598.42,0.00016164,2]
[323694011,1714165909404,-2169.32,0.00016164,2]
[323694012,1714165909413,-1031.64,0.00016164,2]
[323694013,1714165909423,-500.0,0.00016164,2]
[323694014,1714165909432,-3003.77,0.00016164,2]
[323694015,1714165909442,-637.20958922,0.00016164,2]
[323694016,1714165909451,-885.97,0.00016164,2]
[323694017,1714165909461,-1452.7,0.00016164,2]
[323694018,1714165909471,-1299.05,0.00016164,2]
[323694019,1714165909480,-964.95,0.00016164,2]
[323694020,1714165909490,-6953.47,0.00016164,2]
[323694021,1714165909499,-598.29,0.00016164,2]
[323694022,1714165909508,-2182.8,0.00016164,2]
[323694023,1714165909518,-2149.24,0.00016164,2]
[323694024,1714165909527,-1173.04,0.00016164,2]
[323694025,1714165909536,-831.79,0.00016164,2]
[323694026,1714165909545,-2022.3,0.00016164,2]
[323694027,1714165909554,-4234.92,0.00016164,2]
[323694028,1714165909564,-2096.72,0.00016164,2]
[323694029,1714165909576,-1713.59,0.00016164,2]
[323694030,1714165909585,-625.39,0.00016164,2]
[323694031,1714165909595,-3159.71,0.00016164,2]
[323694032,1714165909605,-1338.07,0.00016164,2]
[323694033,1714165909614,-629.77,0.00016164,2]
[323694034,1714165909624,-15953.33,0.00016164,2]
[323694035,1714165909633,-542.84837057,0.00016164,2]
[323694036,1714165909643,-8716.91,0.00016164,2]
[323694037,1714165909652,-2333.3,0.00016164,2]
[323694038,1714165909662,-2250.5,0.00016164,2]
[323694039,1714165909671,-4686.34,0.00016164,2]
[323694040,1714165909681,-2136.27,0.00016164,2]
[323694041,1714165909690,-1193.75,0.00016164,2]
[323694042,1714165909699,-1350.24,0.00016164,2]
[323694043,1714165909708,-1860.65,0.00016164,2]
[323694044,1714165909718,-1152.1,0.00016164,2]
[323694045,1714165909726,-3493.58,0.00016164,2]
[323694046,1714165909736,-720.21,0.00016164,2]
[323694047,1714165909745,-1609.49,0.00016164,2]
[323694048,1714165909755,-743.96,0.00016164,2]
[323694049,1714165909763,-4354.83,0.00016164,2]
[323694050,1714165909773,-902.48,0.00016164,2]
[323694051,1714165909782,-771.76,0.00016164,2]
[323694052,1714165909791,-937.47,0.00016164,2]
[323694053,1714165909801,-563.05,0.00016164,2]
[323694054,1714165909810,-1806.19,0.00016164,2]
[323694055,1714165909819,-1571.07,0.00016164,2]
[323694056,1714165909830,-2572.91,0.00016164,2]
[323694057,1714165909839,-1736.03,0.00016164,2]
[323694058,1714165909848,-4550.03,0.00016164,2]
[323694059,1714165909858,-702.48,0.00016164,2]
[323694060,1714165909868,-2483.94,0.00016164,2]
[323694061,1714165909877,-683.53,0.00016164,2]
[323694062,1714165909887,-2118.68,0.00016164,2]
[323694063,1714165909898,-2305.98,0.00016164,2]
[323694064,1714165909907,-2824.94,0.00016164,2]
[323694065,1714165909917,-1519.98,0.00016164,2]
[323694066,1714165909927,-1443.87,0.00016164,2]
[323694067,1714165909937,-1079.67,0.00016164,2]
[323694068,1714165909946,-500.0,0.00016164,2]
[323694069,1714165909955,-5799.26,0.00016164,2]
[323694070,1714165909965,-2700.57,0.00016164,2]
[323694071,1714165909974,-1958.57,0.00016164,2]
[323694072,1714165909983,-1238.29,0.00016164,2]
[323694073,1714165909992,-2076.33,0.00016164,2]
[323694074,1714165910001,-726.92,0.00016164,2]
[323694075,1714165910011,-3054.76,0.00016164,2]
[323694076,1714165910020,-978.83,0.00016164,2]
[323694077,1714165910030,-2476.96,0.00016164,2]
[323694078,1714165910040,-897.14,0.00016164,2]
[323694079,1714165910049,-1563.14,0.00016164,2]
[323694080,1714165910059,-1893.28,0.00016164,2]
[323694081,1714165910069,-1013.72,0.00016164,2]
[323694082,1714165910079,-900.63,0.00016164,2]
[323694083,1714165910089,-718.21,0.00016164,2]
[323694084,1714165910099,-555.79,0.00016164,2]
[323694085,1714165910109,-6088.6,0.00016164,2]
[323694086,1714165910119,-1066.3,0.00016164,2]
[323694087,1714165910128,-505.04,0.00016164,2]
[323694088,1714165910142,-500.0,0.00016164,2]
[323694089,1714165910151,-2410.31,0.00016164,2]
[323694090,1714165910161,-820.43,0.00016164,2]
[323694091,1714165910170,-523.49,0.00016164,2]
[323694092,1714165910179,-908.81,0.00016164,2]
[323694093,1714165910189,-500.0,0.00016164,2]
[323694094,1714165910198,-1371.32,0.00016164,2]
[323694095,1714165910208,-560.23,0.00016164,2]
[323694096,1714165910217,-2025.12,0.00016164,2]
[323694097,1714165910227,-3137.06,0.00016164,2]
[323694098,1714165910237,-578.95,0.00016164,2]
[323694099,1714165910246,-995.94,0.00016164,2]
[323694100,1714165910255,-2682.02,0.00016164,2]
[323694101,1714165910264,-500.0,0.00016164,2]
[323694102,1714165910272,-501.50047043,0.00016164,2]
[323694103,1714165910281,-201.521508,0.00016164,2]
[323694104,1714165910291,-673.80146933,0.0001618,2]
[323694105,1714165910304,-1137.0,0.00016192,2]
[323694106,1714165910314,-155.04600889,0.00016195,2]
[323694107,1714165910324,-152.50582994,0.00016208,2]
[323694108,1714165910334,-166.66666666,0.00016217,2]
[323694109,1714165910344,-153.67518868,0.00016222,2]
[323694110,1714165910353,-673.80146933,0.00016276,2]
[323694111,1714165910362,-150.7423774,0.00016284,2]
[323694112,1714165910371,-154.56744621,0.00016291,2]
[323694113,1714165910381,-181.18381325,0.00016305,2]
[323694114,1714165910390,-159.44275274,0.00016339,2]
[323694115,1714165910400,-152.47114042,0.00016347,2]
[323694116,1714165910409,-1407.43167261,0.00016358,2]
[323694117,1714165910418,-154.31732651,0.00016368,2]
[323694118,1714165910427,-3000.0,0.0001639,2]
[323694119,1714165910436,-151.74936673,0.00016405,2]
[323694120,1714165910446,-1463.46823127,0.00016408,2]
[323694121,1714165910456,-166.63656948,0.00016424,2]
[323694122,1714165910465,-615.87,0.00016438,2]
[323694123,1714165910474,-151.27942994,0.00016438,2]
[323694124,1714165910483,-609.49,0.00016438,2]
[323694125,1714165910492,-654.47,0.00016438,2]
[323694126,1714165910501,-678.23,0.00016438,2]
[323694127,1714165910510,-613.12,0.00016438,2]
[323694128,1714165910520,-646.77,0.00016438,2]
[323694129,1714165910530,-530.65,0.00016438,2]
[323694130,1714165910540,-880.46,0.00016438,2]
[323694131,1714165910550,-1006.3,0.00016438,2]
[323694132,1714165910561,-500.0,0.00016438,2]
[323694133,1714165910570,-1261.56,0.00016438,2]
[323694134,1714165910581,-504.93,0.00016438,2]
[323694135,1714165910590,-1360.51,0.00016438,2]
[323694136,1714165910599,-1108.07,0.00016438,2]
[323694137,1714165910609,-822.7,0.00016438,2]
[323694138,1714165910619,-543.02,0.00016438,2]
[323694139,1714165910628,-500.0,0.00016438,2]
[323694140,1714165910637,-1146.38,0.00016438,2]
[323694141,1714165910647,-1304.31,0.00016438,2]
[323694142,1714165910656,-560.91,0.00016438,2]
[323694143,1714165910666,-616.75993156,0.00016438,2]
[323694144,1714165910675,-921.09,0.00016438,2]
[323694145,1714165910684,-345.52,0.00016438,2]
[323694146,1714165910694,-700.07,0.00016438,2]
[323694147,1714165910703,-1367.84,0.00016438,2]
[323694148,1714165910712,-760.98,0.00016438,2]
[323694149,1714165910722,-748.97,0.00016438,2]
[323694150,1714165910732,-726.54,0.00016438,2]
[323694151,1714165910742,-550.92,0.00016438,2]
[323694152,1714165910751,-1430.99,0.00016438,2]
[323694153,1714165910761,-570.48,0.00016438,2]
[323694154,1714165910771,-676.01,0.00016438,2]
[323694155,1714165910782,-1217.26,0.00016438,2]
[323694156,1714165910792,-792.02,0.00016438,2]
[323694157,1714165910801,-500.0,0.00016438,2]
[323694158,1714165910811,-725.24,0.00016438,2]
[323694159,1714165910820,-872.88,0.00016438,2]
[323694160,1714165910831,-940.41,0.00016438,2]
[323694161,1714165910841,-509.95,0.00016438,2]
[323694162,1714165910851,-803.02,0.00016438,2]
[323694163,1714165910860,-363.21,0.00016438,2]
[323694164,1714165910870,-749.95,0.00016438,2]
[323694165,1714165910880,-527.35,0.00016438,2]
[323694166,1714165910890,-565.11,0.00016438,2]
[323694167,1714165910899,-656.68,0.00016438,2]
[323694168,1714165910909,-626.53,0.00016438,2]
[323694169,1714165910919,-1008.89,0.00016438,2]
[323694170,1714165910929,-837.59,0.00016438,2]
[323694171,1714165910938,-525.53,0.00016438,2]
[323694172,1714165910948,-565.57,0.00016438,2]
[323694173,1714165910958,-1849.17,0.00016438,2]
[323694174,1714165910969,-1095.79,0.00016438,2]
[323694175,1714165910978,-500.0,0.00016438,2]
[323694176,1714165910988,-1100.72,0.00016438,2]
[323694177,1714165910998,-609.39,0.00016438,2]
[323694178,1714165911008,-1415.44,0.00016438,2]
[323694179,1714165911017,-721.08,0.00016438,2]
[323694180,1714165911027,-521.34,0.00016438,2]
[323694181,1714165911036,-5617.73,0.00016438,2]
[323694182,1714165911047,-8630.93,0.00016438,2]
[323694183,1714165911057,-1052.38,0.00016438,2]
[323694184,1714165911067,-1229.82,0.00016438,2]
[323694185,1714165911078,-6867.51,0.00016438,2]
[323694186,1714165911089,-600.27,0.00016438,2]
[323694187,1714165911099,-1794.51,0.00016438,2]
[323694188,1714165911108,-7720.32,0.00016438,2]
[323694189,1714165911118,-1596.74,0.00016438,2]
[323694190,1714165911127,-2414.19,0.00016438,2]
[323694191,1714165911137,-2546.68,0.00016438,2]
[323694192,1714165911147,-11893.77,0.00016438,2]
[323694193,1714165911156,-1472.99,0.00016438,2]
[323694194,1714165911166,-1714.54,0.00016438,2]
[323694195,1714165911176,-3379.18,0.00016438,2]
[323694196,1714165911186,-500.0,0.00016438,2]
[323694197,1714165911196,-746.33,0.00016438,2]
[323694198,1714165911206,-1131.17,0.00016438,2]
[323694199,1714165911215,-635.79,0.00016438,2]
[323694200,1714165911225,-1362.32,0.00016438,2]
[323694201,1714165911236,-1226.03,0.00016438,2]
[323694202,1714165911246,-1261.3,0.00016438,2]
[323694203,1714165911255,-2565.0,0.00016438,2]
[323694204,1714165911265,-6474.87,0.00016438,2]
[323694205,1714165911275,-626.49,0.00016438,2]
[323694206,1714165911285,-5265.92,0.00016438,2]
[323694207,1714165911297,-7575.76,0.00016438,2]
[323694208,1714165911309,-959.47,0.00016438,2]
[323694209,1714165911318,-894.84,0.00016438,2]
[323694210,1714165911328,-500.0,0.00016438,2]
[323694211,1714165911338,-1029.44,0.00016438,2]
[323694212,1714165911348,-1594.94,0.00016438,2]
[323694213,1714165911357,-1585.92,0.00016438,2]
[323694214,1714165911367,-927.21,0.00016438,2]
[323694215,1714165911378,-29278.54,0.00016438,2]
[323694216,1714165911388,-598.42,0.00016438,2]
[323694217,1714165911397,-2169.32,0.00016438,2]
[323694218,1714165911406,-1031.64,0.00016438,2]
[323694219,1714165911417,-500.0,0.00016438,2]
[323694220,1714165911426,-3003.77,0.00016438,2]
[323694221,1714165911436,-885.97,0.00016438,2]
[323694222,1714165911446,-1452.7,0.00016438,2]
[323694223,1714165911457,-1299.05,0.00016438,2]
[323694224,1714165911467,-964.95,0.00016438,2]
[323694225,1714165911476,-6953.47,0.00016438,2]
[323694226,1714165911486,-598.29,0.00016438,2]
[323694227,1714165911497,-2182.8,0.00016438,2]
[323694228,1714165911506,-2149.24,0.00016438,2]
[323694229,1714165911516,-1173.04,0.00016438,2]
[323694230,1714165911526,-831.79,0.00016438,2]
[323694231,1714165911536,-2022.3,0.00016438,2]
[323694232,1714165911545,-4234.92,0.00016438,2]
[323694233,1714165911556,-2096.72,0.00016438,2]
[323694234,1714165911567,-1713.59,0.00016438,2]
[323694235,1714165911578,-625.39,0.00016438,2]
[323694236,1714165911589,-3159.71,0.00016438,2]
[323694237,1714165911599,-1338.07,0.00016438,2]
[323694238,1714165911609,-629.77,0.00016438,2]
[323694239,1714165911619,-15953.33,0.00016438,2]
[323694240,1714165911630,-8716.91,0.00016438,2]
[323694241,1714165911640,-2333.3,0.00016438,2]
[323694242,1714165911649,-2250.5,0.00016438,2]
[323694243,1714165911660,-4686.34,0.00016438,2]
[323694244,1714165911669,-2136.27,0.00016438,2]
[323694245,1714165911680,-1193.75,0.00016438,2]
[323694246,1714165911690,-1350.24,0.00016438,2]
[323694247,1714165911701,-1860.65,0.00016438,2]
[323694248,1714165911711,-1152.1,0.00016438,2]
[323694249,1714165911721,-3493.58,0.00016438,2]
[323694250,1714165911731,-720.21,0.00016438,2]
[323694251,1714165911740,-1609.49,0.00016438,2]
[323694252,1714165911751,-743.96,0.00016438,2]
[323694253,1714165911761,-4354.83,0.00016438,2]
[323694254,1714165911771,-902.48,0.00016438,2]
[323694255,1714165911781,-771.76,0.00016438,2]
[323694256,1714165911791,-937.47,0.00016438,2]
[323694257,1714165911801,-563.05,0.00016438,2]
[323694258,1714165911811,-1806.19,0.00016438,2]
[323694259,1714165911822,-1571.07,0.00016438,2]
[323694260,1714165911834,-2572.91,0.00016438,2]
[323694261,1714165911845,-1736.03,0.00016438,2]
[323694262,1714165911855,-4550.03,0.00016438,2]
[323694263,1714165911865,-702.48,0.00016438,2]
[323694264,1714165911876,-2483.94,0.00016438,2]
[323694265,1714165911886,-683.53,0.00016438,2]
[323694266,1714165911896,-2118.68,0.00016438,2]
[323694267,1714165911907,-2824.94,0.00016438,2]
[323694268,1714165911917,-2305.98,0.00016438,2]
[323694269,1714165911928,-1519.98,0.00016438,2]
[323694270,1714165911938,-1443.87,0.00016438,2]
[323694271,1714165911949,-1079.67,0.00016438,2]
[323694272,1714165911959,-5799.26,0.00016438,2]
[323694273,1714165911970,-380.57,0.00016438,2]
[323694274,1714165911979,-2700.57,0.00016438,2]
[323694275,1714165911990,-1958.57,0.00016438,2]